fUSD/lending_fUSD_20250426
["ID","MTS","AMOUNT","RATE_DAILY","PERIOD"]
[359042984,1745670326074,-151.0,0.00019998,2]
[359042985,1745670326101,-877.0,0.00019999,2]
[359042986,1745670326131,-190.35356007,0.00019999,2]
[359042987,1745670326159,-309.258224,0.00019999,2]
[359042988,1745670326192,-474.65,0.00019999,2]
[359042989,1745670326222,-719.59,0.00019999,2]
[359042990,1745670326263,-791.33,0.00019999,2]
[359042991,1745670326295,-151.0,0.00019999,2]
[359042992,1745670326325,-491.38,0.00019999,2]
[359042993,1745670326355,-151.0,0.00019999,2]
[359042994,1745670326394,-151.0,0.00019999,2]
[359042995,1745670326425,-415.81,0.00019999,2]
[359042996,1745670326455,-1051.0,0.0002,2]
[359042997,1745670333722,-106494.93318862,0.0002,2]
[359042999,1745670367404,1000.0,0.00037808,60]
[359043000,1745670381010,-872.706644,0.00019799,2]
[359043001,1745670381040,-300.0,0.00019829,2]
[359043002,1745670381070,-36985.00372853,0.0001983,2]
[359043003,1745670381099,-250.0,0.00019865,2]
[359043004,1745670381130,-15982.50332211,0.000199,2]
[359043005,1745670381161,-170.22702337,0.000199,2]
[359043006,1745670381190,-205.99112014,0.000199,2]
[359043007,1745670381222,-400.0,0.00019971,2]
[359043008,1745670381253,-1337.82,0.00019971,2]
[359043009,1745670381283,-590.97,0.00019971,2]
[359043010,1745670381311,-447.88,0.00019971,2]
[359043011,1745670381342,-1286.31,0.00019971,2]
[359043012,1745670381372,-511.46,0.00019971,2]
[359043013,1745670381402,-400.0,0.00019971,2]
[359043014,1745670381434,-997.17,0.00019971,2]
[359043015,1745670381466,-3649.56,0.00019971,2]
[359043016,1745670381496,-400.0,0.00019971,2]
[359043017,1745670381526,-600.52,0.00019971,2]
[359043018,1745670381555,-403.64,0.00019971,2]
[359043019,1745670381585,-780.18,0.00019971,2]
[359043020,1745670381617,-400.0,0.00019971,2]
[359043021,1745670381647,-156.95760552,0.00019971,2]
[359043022,1745670381678,-836.2,0.00019971,2]
[359043023,1745670381708,-447.57,0.00019971,2]
[359043024,1745670381737,-643.0,0.00019971,2]
[359043025,1745670381766,-600.72,0.00019971,2]
[359043026,1745670381795,-400.0,0.00019971,2]
[359043027,1745670381825,-1239.79,0.00019971,2]
[359043028,1745670381854,-1102.31,0.00019971,2]
[359043029,1745670381883,-500.0,0.00019973,2]
[359043030,1745670381911,-500.0,0.00019973,2]
[359043031,1745670381940,-500.0,0.00019973,2]
[359043032,1745670381968,-400.0,0.00019984,2]
[359043033,1745670381996,-898.78,0.00019984,2]
[359043034,1745670382023,-428.1,0.00019984,2]
[359043035,1745670382059,-400.0,0.00019984,2]
[359043036,1745670382092,-400.0,0.00019984,2]
[359043037,1745670382121,-400.0,0.00019984,2]
[359043038,1745670382152,-285.14718984,0.00019984,2]
[359043039,1745670382182,-156.36228179,0.00019984,2]
[359043040,1745670382214,-4185.01,0.00019984,2]
[359043041,1745670382242,-181.67081093,0.00019984,2]
[359043042,1745670382274,-194.78772811,0.00019984,2]
[359043043,1745670382304,-400.0,0.00019984,2]
[359043044,1745670382333,-521.52226622,0.00019984,2]
[359043045,1745670382362,-400.0,0.00019984,2]
[359043046,1745670382391,-400.0,0.00019984,2]
[359043047,1745670382421,-400.0,0.00019984,2]
[359043048,1745670382451,-960.06,0.00019984,2]
[359043049,1745670382481,-400.0,0.00019984,2]
[359043050,1745670382512,-400.0,0.00019984,2]
[359043051,1745670382546,-400.0,0.00019984,2]
[359043052,1745670382583,-400.0,0.00019984,2]
[359043053,1745670382615,-400.0,0.00019984,2]
[359043054,1745670382646,-463.77,0.00019984,2]
[359043055,1745670382675,-400.0,0.00019984,2]
[359043056,1745670383072,-432.09225669,0.00019984,2]
[359043057,1745670383101,-400.0,0.00019985,2]
[359043058,1745670383130,-745.17,0.00019985,2]
[359043059,1745670383158,-400.0,0.00019985,2]
[359043060,1745670383186,-873.74,0.00019985,2]
[359043061,1745670383217,-400.0,0.00019985,2]
[359043062,1745670383247,-400.0,0.00019985,2]
[359043063,1745670383281,-400.0,0.00019985,2]
[359043064,1745670383313,-400.0,0.00019985,2]
[359043065,1745670383344,-400.0,0.00019985,2]
[359043066,1745670383373,-771.10820067,0.00019986,2]
[359043067,1745670383402,-1135.0,0.00019999,2]
[359043068,1745670383432,-400.0,0.00019999,2]
[359043069,1745670383462,-564.7,0.00019999,2]
[359043070,1745670383491,-750.05,0.00019999,2]
[359043071,1745670383533,-9263.38,0.00019999,2]
[359043072,1745670383566,-703.88,0.00019999,2]
[359043073,1745670383597,-400.0,0.00019999,2]
[359043074,1745670383627,-151.0,0.00019999,2]
[359043075,1745670383659,-634.82,0.00019999,2]
[359043076,1745670383689,-946.0,0.0002,2]
[359043077,1745670385993,-816.17,0.00019999,2]
[359043078,1745670386003,-32494.54964416,0.0002,2]
[359043079,1745670392433,1000.0,0.00037808,60]
[359043080,1745670420039,227.46,0.00019029,2]
[359043081,1745670427875,-300.0,0.00019791,2]
[359043082,1745670427906,-8780.855498,0.00019792,2]
[359043083,1745670427937,-1450.377107,0.00019792,2]
[359043084,1745670427966,-8780.855498,0.00019793,2]
[359043085,1745670427995,-1450.377107,0.00019793,2]
[359043086,1745670428024,-8780.855498,0.00019795,2]
[359043087,1745670428052,-1450.377107,0.00019795,2]
[359043088,1745670428089,-8780.855498,0.00019797,2]
[359043089,1745670428120,-1450.377107,0.00019797,2]
[359043090,1745670428153,-8769.283662,0.00019798,2]
[359043091,1745670428360,-11.571836,0.00019798,2]
[359043101,1745670443562,-1729.474785,0.00019792,2]
[359043102,1745670443595,-1729.474785,0.00019793,2]
[359043103,1745670443630,-1729.474785,0.00019795,2]
[359043104,1745670443663,-1729.474785,0.00019797,2]
[359043105,1745670443695,-1450.377107,0.00019798,2]
[359043106,1745670443726,-1729.474785,0.00019798,2]
[359043107,1745670443755,-698.1653152,0.00019799,2]
[359043108,1745670443783,-774.3907,0.00019871,2]
[359043109,1745670443811,-2614.6722967,0.000199,2]
[359043110,1745670443840,-174.52614189,0.000199,2]
[359043111,1745670443868,-204.4979377,0.000199,2]
[359043112,1745670443898,-8780.855498,0.0001997,2]
[359043113,1745670443929,-1450.377107,0.0001997,2]
[359043114,1745670443958,-1729.474785,0.0001997,2]
[359043115,1745670443987,-400.0,0.00019971,2]
[359043116,1745670444355,-1150.57837302,0.00019971,2]
[359043162,1745670638003,-558.5322522,0.00019799,2]
[359043163,1745670638013,-175.44168694,0.00019884,2]
[359043164,1745670638023,-175.44168694,0.00019892,2]
[359043165,1745670638032,-67.57240329,0.00019899,2]
[359043166,1745670638044,-1132.42759671,0.00019899,2]
[359043167,1745670638054,-300.0,0.00019899,2]
[359043168,1745670638065,-175.44168694,0.000199,2]
[359043169,1745670638076,-196.0,0.000199,2]
[359043170,1745670638086,-196.0,0.000199,2]
[359043171,1745670638098,-400.0,0.00019971,2]
[359043172,1745670638107,-653.83,0.00019971,2]
[359043173,1745670638118,-56.31787748,0.00019971,2]
[359043174,1745670638131,-343.68212252,0.00019971,2]
[359043175,1745670638140,-400.0,0.00019971,2]
[359043176,1745670638149,-1304.32144248,0.00019971,2]
[359043177,1745670638161,-4059.62035122,0.00019971,2]
[359043178,1745670638172,-3158.92017496,0.00019971,2]
[359043179,1745670638183,-4184.156181,0.00019971,2]
[359043187,1745670638526,-1121.70137876,0.00019971,2]
[359043192,1745670638570,-93841.05047158,0.00019971,2]
[359043194,1745670638580,-400.0,0.00019971,2]
[359043196,1745670638591,-1450.377107,0.00019971,2]
[359043198,1745670638601,-12898.2,0.00019971,2]
[359043200,1745670638610,-397.05282547,0.00019971,2]
[359043202,1745670638620,-769.07,0.00019971,2]
[359043204,1745670638630,-6641.46,0.00019971,2]
[359043206,1745670638639,-400.0,0.00019971,2]
[359043208,1745670638650,-676.92,0.00019971,2]
[359043211,1745670638660,-2550.05,0.00019971,2]
[359043213,1745670638670,-1729.474785,0.00019971,2]
[359043215,1745670638679,-400.0,0.00019971,2]
[359043217,1745670638689,-400.0,0.00019971,2]
[359043219,1745670638699,-400.0,0.00019971,2]
[359043220,1745670638708,-400.0,0.00019971,2]
[359043222,1745670638718,-898.25,0.00019971,2]
[359043224,1745670638727,-400.0,0.00019971,2]
[359043226,1745670638737,-400.0,0.00019971,2]
[359043228,1745670638747,-400.0,0.00019971,2]
[359043230,1745670638756,-400.0,0.00019971,2]
[359043232,1745670638766,-716.61,0.00019971,2]
[359043234,1745670638775,-644.64,0.00019971,2]
[359043236,1745670638785,-627.37,0.00019971,2]
[359043238,1745670638796,-1269.62,0.00019971,2]
[359043240,1745670638806,-471.93,0.00019971,2]
[359043242,1745670638815,-400.0,0.00019971,2]
[359043244,1745670638825,-764.67,0.00019971,2]
[359043246,1745670638834,-530.99,0.00019971,2]
[359043247,1745670638844,-427.06,0.00019971,2]
[359043249,1745670638854,-400.0,0.00019971,2]
[359043251,1745670638864,-540.19,0.00019971,2]
[359043253,1745670638873,-472.76,0.00019971,2]
[359043255,1745670638883,-731.11,0.00019971,2]
[359043257,1745670638893,-450.56,0.00019971,2]
[359043259,1745670638903,-400.0,0.00019971,2]
[359043261,1745670638915,-867.35,0.00019971,2]
[359043263,1745670638924,-400.0,0.00019971,2]
[359043265,1745670638934,-500.0,0.00019971,2]
[359043267,1745670638944,-400.0,0.00019971,2]
[359043269,1745670638955,-532.47,0.00019971,2]
[359043271,1745670638965,-461.39,0.00019971,2]
[359043273,1745670638975,-521.23,0.00019971,2]
[359043275,1745670638985,-888.1,0.00019971,2]
[359043278,1745670639007,-400.0,0.00019971,2]
[359043280,1745670639018,-1008.89,0.00019971,2]
[359043282,1745670639028,-769.59,0.00019971,2]
[359043284,1745670639038,-400.0,0.00019971,2]
[359043286,1745670639049,-400.0,0.00019971,2]
[359043288,1745670639059,-1192.87,0.00019971,2]
[359043290,1745670639069,-806.48,0.00019971,2]
[359043292,1745670639080,-4010.64,0.00019971,2]
[359043295,1745670639090,-767.55,0.00019971,2]
[359043297,1745670639100,-621.56,0.00019971,2]
[359043299,1745670639110,-400.0,0.00019971,2]
[359043301,1745670639121,-825.14,0.00019971,2]
[359043303,1745670639132,-1673.22,0.00019971,2]
[359043305,1745670639142,-742.58,0.00019971,2]
[359043307,1745670639152,-590.65,0.00019971,2]
[359043309,1745670639162,-1090.71,0.00019971,2]
[359043311,1745670639172,-780.33,0.00019971,2]
[359043313,1745670639181,-716.93,0.00019971,2]
[359043314,1745670639191,-1282.08,0.00019971,2]
[359043316,1745670639201,-2608.95,0.00019971,2]
[359043319,1745670639211,-1232.71,0.00019971,2]
[359043321,1745670639221,-400.0,0.00019971,2]
[359043323,1745670639230,-446.12,0.00019971,2]
[359043325,1745670639240,-963.48,0.00019971,2]
[359043327,1745670639250,-896.54,0.00019971,2]
[359043329,1745670639259,-3497.5,0.00019971,2]
[359043330,1745670639269,-400.0,0.00019971,2]
[359043332,1745670639282,-556.42,0.00019971,2]
[359043333,1745670639294,-500.0,0.00019973,2]
[359043334,1745670639304,-500.0,0.00019973,2]
[359043335,1745670639313,-500.0,0.00019973,2]
[359043336,1745670639323,-500.0,0.00019973,2]
[359043337,1745670639333,-494.3,0.00019984,2]
[359043338,1745670639344,-400.0,0.00019984,2]
[359043339,1745670639354,-400.0,0.00019984,2]
[359043340,1745670639367,-400.0,0.00019984,2]
[359043341,1745670639377,-400.0,0.00019984,2]
[359043342,1745670639388,-408.35,0.00019984,2]
[359043343,1745670639399,-769.07,0.00019984,2]
[359043344,1745670639408,-678.3,0.00019984,2]
[359043345,1745670639418,-400.0,0.00019984,2]
[359043346,1745670639428,-410.99,0.00019984,2]
[359043347,1745670639445,-400.0,0.00019984,2]
[359043348,1745670639455,-400.0,0.00019984,2]
[359043349,1745670639466,-400.0,0.00019984,2]
[359043350,1745670639476,-400.0,0.00019984,2]
[359043351,1745670639486,-400.0,0.00019984,2]
[359043352,1745670639496,-400.0,0.00019984,2]
[359043353,1745670639506,-400.0,0.00019984,2]
[359043354,1745670639516,-400.0,0.00019984,2]
[359043355,1745670639526,-400.0,0.00019984,2]
[359043356,1745670639536,-435.32,0.00019984,2]
[359043357,1745670639546,-771.0,0.00019984,2]
[359043358,1745670639556,-400.0,0.00019984,2]
[359043359,1745670639567,-500.0,0.00019984,2]
[359043360,1745670639577,-400.0,0.00019984,2]
[359043361,1745670639591,-777.12,0.00019984,2]
[359043362,1745670639600,-400.0,0.00019984,2]
[359043363,1745670639611,-400.0,0.00019984,2]
[359043364,1745670639621,-400.0,0.00019984,2]
[359043365,1745670639631,-400.0,0.00019984,2]
[359043366,1745670639642,-400.0,0.00019984,2]
[359043367,1745670639652,-652.4,0.00019984,2]
[359043368,1745670639663,-811.7,0.00019984,2]
[359043369,1745670639673,-400.0,0.00019984,2]
[359043370,1745670639683,-400.0,0.00019984,2]
[359043371,1745670639693,-400.0,0.00019984,2]
[359043372,1745670639704,-374.90937011,0.00019984,2]
[359043373,1745670639714,-400.0,0.00019984,2]
[359043374,1745670639724,-400.0,0.00019984,2]
[359043375,1745670639735,-1091.65,0.00019984,2]
[359043376,1745670639749,-400.0,0.00019984,2]
[359043377,1745670639759,-400.0,0.00019984,2]
[359043378,1745670639770,-535.04,0.00019984,2]
[359043379,1745670639780,-400.0,0.00019984,2]
[359043380,1745670639790,-400.0,0.00019984,2]
[359043381,1745670639801,-641.44,0.00019984,2]
[359043382,1745670639812,-400.0,0.00019984,2]
[359043383,1745670639822,-400.0,0.00019984,2]
[359043384,1745670639832,-818.18,0.00019984,2]
[359043385,1745670639843,-400.0,0.00019984,2]
[359043386,1745670639853,-400.0,0.00019984,2]
[359043387,1745670639863,-179.29675452,0.00019984,2]
[359043388,1745670639873,-400.0,0.00019984,2]
[359043389,1745670639889,-400.0,0.00019984,2]
[359043390,1745670639900,-156.30465013,0.00019984,2]
[359043391,1745670639910,-400.0,0.00019984,2]
[359043392,1745670639921,-786.47,0.00019984,2]
[359043393,1745670639931,-400.0,0.00019984,2]
[359043394,1745670639942,-400.0,0.00019984,2]
[359043395,1745670639952,-400.0,0.00019984,2]
[359043396,1745670639963,-156.99553438,0.00019984,2]
[359043397,1745670639973,-400.0,0.00019984,2]
[359043398,1745670639984,-532.9,0.00019984,2]
[359043399,1745670639995,-617.34,0.00019984,2]
[359043400,1745670640007,-400.0,0.00019984,2]
[359043401,1745670640018,-400.0,0.00019984,2]
[359043402,1745670640031,-400.0,0.00019984,2]
[359043403,1745670640042,-500.0,0.00019984,2]
[359043404,1745670640053,-400.0,0.00019984,2]
[359043405,1745670640065,-486.97,0.00019984,2]
[359043406,1745670640076,-400.0,0.00019984,2]
[359043407,1745670640086,-400.0,0.00019984,2]
[359043408,1745670640097,-400.0,0.00019984,2]
[359043409,1745670640107,-572.15,0.00019984,2]
[359043410,1745670640118,-632.22,0.00019984,2]
[359043411,1745670640128,-400.0,0.00019984,2]
[359043412,1745670640139,-400.0,0.00019984,2]
[359043413,1745670640149,-400.0,0.00019984,2]
[359043414,1745670640159,-400.0,0.00019984,2]
[359043415,1745670640170,-400.0,0.00019984,2]
[359043416,1745670640181,-409.01,0.00019984,2]
[359043417,1745670640194,-400.0,0.00019984,2]
[359043418,1745670640206,-400.0,0.00019984,2]
[359043419,1745670640218,-400.0,0.00019984,2]
[359043420,1745670640229,-400.0,0.00019984,2]
[359043421,1745670640241,-400.0,0.00019984,2]
[359043422,1745670640251,-400.0,0.00019984,2]
[359043423,1745670640264,-423.81,0.00019984,2]
[359043424,1745670640275,-400.0,0.00019984,2]
[359043425,1745670640292,-400.0,0.00019984,2]
[359043426,1745670640302,-400.0,0.00019984,2]
[359043427,1745670640312,-400.0,0.00019984,2]
[359043428,1745670640328,-500.0,0.00019984,2]
[359043429,1745670640339,-400.0,0.00019984,2]
[359043430,1745670640349,-400.0,0.00019984,2]
[359043431,1745670640360,-1913.89,0.00019984,2]
[359043432,1745670640371,-400.0,0.00019984,2]
[359043433,1745670640384,-229.68816259,0.00019984,2]
[359043434,1745670640394,-442.88,0.00019984,2]
[359043435,1745670640406,-717.35,0.00019984,2]
[359043436,1745670640416,-400.0,0.00019984,2]
[359043437,1745670640427,-400.0,0.00019984,2]
[359043438,1745670640438,-400.0,0.00019985,2]
[359043439,1745670640449,-400.0,0.00019985,2]
[359043440,1745670640459,-400.0,0.00019985,2]
[359043441,1745670640470,-400.0,0.00019985,2]
[359043442,1745670640480,-400.0,0.00019985,2]
[359043443,1745670640491,-1450.377107,0.00019985,2]
[359043444,1745670640501,-666.74,0.00019985,2]
[359043445,1745670640512,-400.0,0.00019985,2]
[359043446,1745670640522,-400.0,0.00019985,2]
[359043447,1745670640532,-856.29,0.00019985,2]
[359043448,1745670640542,-400.0,0.00019985,2]
[359043449,1745670640552,-1729.474785,0.00019985,2]
[359043450,1745670640563,-400.0,0.00019985,2]
[359043451,1745670640573,-400.0,0.00019985,2]
[359043452,1745670640583,-955.58,0.00019985,2]
[359043453,1745670640595,-862.22,0.00019985,2]
[359043454,1745670640605,-1050.94,0.00019985,2]
[359043455,1745670640615,-457.11,0.00019985,2]
[359043456,1745670640626,-450.41,0.00019985,2]
[359043457,1745670640635,-400.0,0.00019985,2]
[359043458,1745670640646,-742.95,0.00019985,2]
[359043459,1745670640656,-455.72,0.00019985,2]
[359043460,1745670640667,-400.0,0.00019985,2]
[359043461,1745670640677,-277.58244899,0.00019985,2]
[359043462,1745670640687,-400.0,0.00019985,2]
[359043463,1745670640697,-400.0,0.00019985,2]
[359043464,1745670640708,-480.1,0.00019985,2]
[359043465,1745670640718,-400.0,0.00019985,2]
[359043466,1745670640729,-400.0,0.00019985,2]
[359043467,1745670640740,-708.62,0.00019985,2]
[359043468,1745670640750,-400.0,0.00019985,2]
[359043469,1745670640760,-400.0,0.00019985,2]
[359043470,1745670640780,-465.94,0.00019985,2]
[359043471,1745670640791,-1008.57,0.00019985,2]
[359043472,1745670640803,-4451.81,0.00019985,2]
[359043473,1745670640815,-400.0,0.00019985,2]
[359043474,1745670640827,-727.59,0.00019985,2]
[359043475,1745670640840,-627.7,0.00019985,2]
[359043476,1745670640850,-553.41,0.00019985,2]
[359043477,1745670640860,-868.17,0.00019985,2]
[359043478,1745670640870,-1306.38,0.00019985,2]
[359043479,1745670640881,-689.61,0.00019985,2]
[359043480,1745670640892,-599.97,0.00019985,2]
[359043481,1745670640903,-470.9,0.00019985,2]
[359043482,1745670640915,-906.08,0.00019985,2]
[359043483,1745670640927,-165.37377652,0.00019985,2]
[359043484,1745670640941,-400.0,0.00019985,2]
[359043485,1745670640951,-400.0,0.00019985,2]
[359043486,1745670640961,-400.0,0.00019985,2]
[359043487,1745670640971,-500.0,0.00019985,2]
[359043488,1745670640981,-177.22198426,0.00019985,2]
[359043489,1745670640991,-400.0,0.00019985,2]
[359043490,1745670641002,-585.18,0.00019985,2]
[359043491,1745670641012,-500.0,0.00019985,2]
[359043492,1745670641022,-400.0,0.00019985,2]
[359043493,1745670641033,-428.65,0.00019985,2]
[359043494,1745670641042,-500.0,0.00019985,2]
[359043495,1745670641052,-400.0,0.00019985,2]
[359043496,1745670641062,-428.21,0.00019985,2]
[359043497,1745670641072,-400.0,0.00019985,2]
[359043498,1745670641082,-400.0,0.00019985,2]
[359043499,1745670641092,-400.0,0.00019985,2]
[359043500,1745670641103,-977.22,0.00019985,2]
[359043501,1745670641113,-400.0,0.00019985,2]
[359043502,1745670641123,-400.0,0.00019985,2]
[359043503,1745670641133,-152.68415493,0.00019985,2]
[359043504,1745670641143,-669.11,0.00019985,2]
[359043505,1745670641154,-206.17668263,0.00019985,2]
[359043506,1745670641167,-500.0,0.00019985,2]
[359043507,1745670641179,-594.03,0.00019985,2]
[359043508,1745670641190,-186.8939025,0.00019985,2]
[359043509,1745670641202,-683.797192,0.00019985,2]
[359043510,1745670641214,-400.0,0.00019985,2]
[359043511,1745670641224,-150.46767924,0.00019985,2]
[359043512,1745670641236,-1245.01,0.00019985,2]
[359043513,1745670641248,-400.0,0.00019985,2]
[359043514,1745670641259,-67962.9482922,0.00019986,2]
[359043515,1745670641269,-11053.0955783,0.00019986,2]
[359043516,1745670641280,-4170.2396523,0.00019986,2]
[359043517,1745670641291,-374.4501421,0.00019986,2]
[359043518,1745670641301,-207.4,0.00019988,2]
[359043519,1745670641311,-276.25,0.0001999,2]
[359043520,1745670641321,-276.25,0.0001999,2]
[359043521,1745670641332,-276.25,0.0001999,2]
[359043522,1745670641343,-276.25,0.0001999,2]
[359043523,1745670641353,-276.25,0.0001999,2]
[359043524,1745670641363,-276.25,0.0001999,2]
[359043525,1745670641372,-276.25,0.0001999,2]
[359043526,1745670641383,-276.25,0.0001999,2]
[359043527,1745670641393,-276.25,0.0001999,2]
[359043528,1745670641403,-276.25,0.0001999,2]
[359043529,1745670641413,-276.25,0.0001999,2]
[359043530,1745670641423,-276.25,0.0001999,2]
[359043531,1745670641433,-276.25,0.0001999,2]
[359043532,1745670641444,-276.25,0.0001999,2]
[359043533,1745670641454,-276.25,0.0001999,2]
[359043534,1745670641464,-276.25,0.0001999,2]
[359043535,1745670641476,-276.25,0.0001999,2]
[359043536,1745670641485,-276.25,0.0001999,2]
[359043537,1745670641495,-276.25,0.0001999,2]
[359043538,1745670641505,-276.25,0.0001999,2]
[359043539,1745670641515,-276.25,0.0001999,2]
[359043540,1745670641526,-276.25,0.0001999,2]
[359043541,1745670641536,-276.25,0.0001999,2]
[359043542,1745670641545,-276.25,0.0001999,2]
[359043543,1745670641556,-118.90342845,0.0001999,2]
[359043544,1745670641576,-157.34657155,0.0001999,2]
[359043545,1745670641586,-276.25,0.0001999,2]
[359043546,1745670641596,-276.25,0.0001999,2]
[359043547,1745670641607,-276.25,0.0001999,2]
[359043548,1745670641618,-276.25,0.0001999,2]
[359043549,1745670641628,-276.25,0.0001999,2]
[359043550,1745670641638,-276.25,0.0001999,2]
[359043551,1745670641649,-276.25,0.0001999,2]
[359043552,1745670641659,-276.25,0.0001999,2]
[359043553,1745670641669,-276.25,0.0001999,2]
[359043554,1745670641679,-276.25,0.0001999,2]
[359043555,1745670641688,-276.25,0.0001999,2]
[359043556,1745670641698,-276.25,0.0001999,2]
[359043557,1745670641708,-276.25,0.0001999,2]
[359043558,1745670641718,-276.25,0.0001999,2]
[359043559,1745670641728,-276.25,0.0001999,2]
[359043560,1745670641740,-276.25,0.0001999,2]
[359043561,1745670641751,-276.25,0.0001999,2]
[359043562,1745670641763,-276.25,0.0001999,2]
[359043563,1745670641775,-276.25,0.0001999,2]
[359043564,1745670641786,-276.25,0.0001999,2]
[359043565,1745670641797,-276.25,0.0001999,2]
[359043566,1745670641808,-276.25,0.0001999,2]
[359043567,1745670641819,-276.25,0.0001999,2]
[359043568,1745670641830,-276.25,0.0001999,2]
[359043569,1745670641840,-276.25,0.0001999,2]
[359043570,1745670641850,-276.25,0.0001999,2]
[359043571,1745670641861,-276.25,0.0001999,2]
[359043572,1745670641871,-276.25,0.0001999,2]
[359043573,1745670641881,-276.25,0.0001999,2]
[359043574,1745670641893,-276.25,0.0001999,2]
[359043575,1745670641903,-276.25,0.0001999,2]
[359043576,1745670641916,-276.25,0.0001999,2]
[359043577,1745670641928,-276.25,0.0001999,2]
[359043578,1745670641938,-276.25,0.0001999,2]
[359043579,1745670641949,-276.25,0.0001999,2]
[359043580,1745670641962,-276.25,0.0001999,2]
[359043581,1745670641972,-276.25,0.0001999,2]
[359043582,1745670641981,-276.25,0.0001999,2]
[359043583,1745670641991,-276.25,0.0001999,2]
[359043584,1745670642000,-276.25,0.0001999,2]
[359043585,1745670642010,-276.25,0.0001999,2]
[359043586,1745670642020,-276.25,0.0001999,2]
[359043587,1745670642030,-276.25,0.0001999,2]
[359043588,1745670642041,-276.25,0.0001999,2]
[359043589,1745670642052,-276.25,0.0001999,2]
[359043590,1745670642063,-276.25,0.0001999,2]
[359043591,1745670642072,-276.25,0.0001999,2]
[359043592,1745670642083,-276.25,0.0001999,2]
[359043593,1745670642093,-276.25,0.0001999,2]
[359043594,1745670642103,-276.25,0.0001999,2]
[359043595,1745670642113,-276.25,0.0001999,2]
[359043596,1745670642123,-276.25,0.0001999,2]
[359043597,1745670642133,-276.25,0.0001999,2]
[359043598,1745670642143,-276.25,0.0001999,2]
[359043599,1745670642153,-276.25,0.0001999,2]
[359043600,1745670642163,-276.25,0.0001999,2]
[359043601,1745670642173,-276.25,0.0001999,2]
[359043602,1745670642182,-276.25,0.0001999,2]
[359043603,1745670642193,-276.25,0.0001999,2]
[359043604,1745670642203,-276.25,0.0001999,2]
[359043605,1745670642213,-276.25,0.0001999,2]
[359043606,1745670642223,-276.25,0.0001999,2]
[359043607,1745670642234,-276.25,0.0001999,2]
[359043608,1745670642243,-276.25,0.0001999,2]
[359043609,1745670642253,-276.25,0.0001999,2]
[359043610,1745670642262,-276.25,0.0001999,2]
[359043611,1745670642272,-276.25,0.0001999,2]
[359043612,1745670642285,-276.25,0.0001999,2]
[359043613,1745670642294,-276.25,0.0001999,2]
[359043614,1745670642304,-276.25,0.0001999,2]
[359043615,1745670642313,-276.25,0.0001999,2]
[359043616,1745670642325,-276.25,0.0001999,2]
[359043617,1745670642335,-276.25,0.0001999,2]
[359043618,1745670642346,-276.25,0.0001999,2]
[359043619,1745670642357,-1336.0,0.00019999,2]